[Event "Titled Tuesday Blitz April 11 Late 2023"]
[White "Andreikin, Dmitry"]
[Black "Riehle, Marco"]
[WhiteFideId "4158814"]
[BlackFideId "12904392"]
[WhiteElo "2736"]
[BlackElo "2462"]
[Result "1-0"]
[Round "05"]
[TimeControl "180+2"]
[Date "2023.04.11"]
[WhiteClock "0:02:13"]
[BlackClock "0:01:34"]

1. c4 {[%clk 0:03:00]}  e6 {[%clk 0:02:58]} 2. Nf3 {[%clk 0:02:58]}  d5 {[%clk 0:02:58]} 3. g3 {[%clk 0:02:58]}  Nf6 {[%clk 0:02:57]} 4. Bg2 {[%clk 0:02:58]}  Be7 {[%clk 0:02:54]} 5. d4 {[%clk 0:02:58]}  O-O {[%clk 0:02:54]} 6. Na3 {[%clk 0:02:59]}  Ne4 {[%clk 0:02:44]} 7. O-O {[%clk 0:02:58]}  b6 {[%clk 0:02:44]} 8. cxd5 {[%clk 0:02:55]}  exd5 {[%clk 0:02:43]} 9. Bf4 {[%clk 0:02:56]}  c6 {[%clk 0:02:38]} 10. Rc1 {[%clk 0:02:54]}  Bb7 {[%clk 0:02:37]} 11. Ne5 {[%clk 0:02:54]}  f6 {[%clk 0:02:33]} 12. Nd3 {[%clk 0:02:50]}  Nd7 {[%clk 0:02:21]} 13. Nc2 {[%clk 0:02:45]}  Rc8 {[%clk 0:02:16]} 14. Ne3 {[%clk 0:02:45]}  g5 {[%clk 0:02:16]} 15. Nf5 {[%clk 0:02:39]}  gxf4 {[%clk 0:02:12]} 16. Nxf4 {[%clk 0:02:39]}  Qe8 {[%clk 0:01:59]} 17. Bf3 {[%clk 0:02:18]}  Bd8 {[%clk 0:01:41]} 18. Bh5 {[%clk 0:02:17]}  Bc7 {[%clk 0:01:36]} 19. Bxe8 {[%clk 0:02:15]}  Rcxe8 {[%clk 0:01:37]} 20. Nxd5 {[%clk 0:02:14]}  cxd5 {[%clk 0:01:33]} 21. Rxc7 {[%clk 0:02:13]}  Bc8 {[%clk 0:01:34]} 1-0


[Site "https://www.chess.com"]

[Event "Titled Tuesday Blitz April 11 Late 2023"]
[White "Kushko, Dmitriy"]
[Black "Bluebaum, Matthias"]
[WhiteFideId "14162261"]
[BlackFideId "24651516"]
[WhiteElo "2230"]
[BlackElo "2638"]
[Result "1-0"]
[Round "05"]
[TimeControl "180+2"]
[Date "2023.04.11"]
[WhiteClock "0:00:07"]
[BlackClock "0:00:03"]

1. f4 {[%clk 0:03:00]}  d5 {[%clk 0:02:59]} 2. Nf3 {[%clk 0:03:00]}  Nf6 {[%clk 0:02:59]} 3. g3 {[%clk 0:03:00]}  e6 {[%clk 0:03:00]} 4. Bg2 {[%clk 0:03:00]}  b5 {[%clk 0:03:00]} 5. c3 {[%clk 0:02:57]}  Be7 {[%clk 0:02:55]} 6. Qb3 {[%clk 0:02:56]}  a6 {[%clk 0:02:48]} 7. a4 {[%clk 0:02:55]}  bxa4 {[%clk 0:02:48]} 8. Qxa4+ {[%clk 0:02:55]}  Bd7 {[%clk 0:02:48]} 9. Qc2 {[%clk 0:02:49]}  O-O {[%clk 0:02:48]} 10. Ne5 {[%clk 0:02:47]}  c5 {[%clk 0:02:45]} 11. O-O {[%clk 0:02:40]}  Nc6 {[%clk 0:02:46]} 12. Nxd7 {[%clk 0:02:40]}  Qxd7 {[%clk 0:02:47]} 13. d3 {[%clk 0:02:37]}  a5 {[%clk 0:02:42]} 14. Nd2 {[%clk 0:02:36]}  Rfb8 {[%clk 0:02:31]} 15. Nf3 {[%clk 0:02:36]}  h6 {[%clk 0:02:19]} 16. Kh1 {[%clk 0:02:35]}  Qb7 {[%clk 0:01:51]} 17. e4 {[%clk 0:02:14]}  Qb5 {[%clk 0:01:39]} 18. Re1 {[%clk 0:02:07]}  a4 {[%clk 0:01:31]} 19. exd5 {[%clk 0:01:33]}  exd5 {[%clk 0:01:29]} 20. Ne5 {[%clk 0:01:33]}  Bd6 {[%clk 0:01:11]} 21. Nxc6 {[%clk 0:01:20]}  Qxc6 {[%clk 0:01:12]} 22. Be3 {[%clk 0:01:13]}  Rb3 {[%clk 0:01:07]} 23. Rad1 {[%clk 0:00:54]}  Rab8 {[%clk 0:00:36]} 24. Bc1 {[%clk 0:00:54]}  Qa6 {[%clk 0:00:37]} 25. Bf3 {[%clk 0:00:49]}  Qa5 {[%clk 0:00:37]} 26. Qg2 {[%clk 0:00:48]}  d4 {[%clk 0:00:26]} 27. c4 {[%clk 0:00:38]}  Rxd3 {[%clk 0:00:24]} 28. g4 {[%clk 0:00:15]}  Rxd1 {[%clk 0:00:23]} 29. Rxd1 {[%clk 0:00:15]}  Re8 {[%clk 0:00:13]} 30. Bd2 {[%clk 0:00:14]}  Qb6 {[%clk 0:00:06]} 31. g5 {[%clk 0:00:14]}  hxg5 {[%clk 0:00:07]} 32. fxg5 {[%clk 0:00:14]}  Nh7 {[%clk 0:00:06]} 33. g6 {[%clk 0:00:15]}  fxg6 {[%clk 0:00:07]} 34. Qxg6 {[%clk 0:00:14]}  Rf8 {[%clk 0:00:03]} 35. Rg1 {[%clk 0:00:14]}  Qc7 {[%clk 0:00:03]} 36. Bh6 {[%clk 0:00:11]}  Be5 {[%clk 0:00:02]} 37. Be4 {[%clk 0:00:10]}  Nf6 {[%clk 0:00:03]} 38. Bxg7 {[%clk 0:00:08]}  Nxe4 {[%clk 0:00:03]} 39. Bxe5+ {[%clk 0:00:07]} 1-0


[Site "https://www.chess.com"]

[Event "Titled Tuesday Blitz April 11 Late 2023"]
[White "Hambleton, Aman"]
[Black "Firouzja, Alireza"]
[WhiteFideId "2606577"]
[BlackFideId "12573981"]
[WhiteElo "2511"]
[BlackElo "2904"]
[Result "0-1"]
[Round "05"]
[TimeControl "180+2"]
[Date "2023.04.11"]
[WhiteClock "0:00:01"]
[BlackClock "0:00:17"]

1. d4 {[%clk 0:03:00]}  Nf6 {[%clk 0:02:58]} 2. c4 {[%clk 0:03:00]}  g6 {[%clk 0:02:58]} 3. Nc3 {[%clk 0:02:59]}  Bg7 {[%clk 0:02:59]} 4. e4 {[%clk 0:02:59]}  O-O {[%clk 0:02:58]} 5. f3 {[%clk 0:02:53]}  d6 {[%clk 0:02:58]} 6. Be3 {[%clk 0:02:53]}  c5 {[%clk 0:02:58]} 7. dxc5 {[%clk 0:02:52]}  dxc5 {[%clk 0:02:56]} 8. Qxd8 {[%clk 0:02:52]}  Rxd8 {[%clk 0:02:57]} 9. Bxc5 {[%clk 0:02:52]}  Nc6 {[%clk 0:02:58]} 10. Nd5 {[%clk 0:02:52]}  Nd7 {[%clk 0:02:51]} 11. Bxe7 {[%clk 0:02:51]}  Nxe7 {[%clk 0:02:49]} 12. Nxe7+ {[%clk 0:02:52]}  Kf8 {[%clk 0:02:50]} 13. Nd5 {[%clk 0:02:48]}  Bxb2 {[%clk 0:02:47]} 14. Rb1 {[%clk 0:02:48]}  Bg7 {[%clk 0:02:46]} 15. Nh3 {[%clk 0:02:46]}  b6 {[%clk 0:02:44]} 16. g4 {[%clk 0:02:38]}  Bb7 {[%clk 0:02:42]} 17. Be2 {[%clk 0:02:29]}  Rac8 {[%clk 0:02:41]} 18. Kf2 {[%clk 0:02:11]}  Rc5 {[%clk 0:02:39]} 19. Rhc1 {[%clk 0:02:00]}  Rdc8 {[%clk 0:02:34]} 20. Nhf4 {[%clk 0:01:19]}  Ne5 {[%clk 0:02:34]} 21. Nd3 {[%clk 0:01:01]}  Rxc4 {[%clk 0:02:34]} 22. Rxc4 {[%clk 0:00:22]}  Nxc4 {[%clk 0:02:35]} 23. Rc1 {[%clk 0:00:12]}  b5 {[%clk 0:02:35]} 24. Kg3 {[%clk 0:00:06]}  Re8 {[%clk 0:02:31]} 25. Bf1 {[%clk 0:00:02]}  a6 {[%clk 0:02:07]} 26. Nc5 {[%clk 0:00:01]}  Bxd5 {[%clk 0:01:39]} 27. exd5 {[%clk 0:00:02]}  Nd2 {[%clk 0:01:07]} 28. Rd1 {[%clk 0:00:02]}  Be5+ {[%clk 0:01:01]} 29. f4 {[%clk 0:00:02]}  Nxf1+ {[%clk 0:00:58]} 30. Rxf1 {[%clk 0:00:03]}  Bd6 {[%clk 0:00:59]} 31. Nd7+ {[%clk 0:00:02]}  Kg7 {[%clk 0:00:55]} 32. g5 {[%clk 0:00:02]}  h6 {[%clk 0:00:49]} 33. h4 {[%clk 0:00:02]}  Re2 {[%clk 0:00:45]} 34. Kf3 {[%clk 0:00:01]}  Rxa2 {[%clk 0:00:40]} 35. Rc1 {[%clk 0:00:02]}  Ra4 {[%clk 0:00:39]} 36. Nf6 {[%clk 0:00:01]}  Bxf4 {[%clk 0:00:29]} 37. Rc8 {[%clk 0:00:01]}  hxg5 {[%clk 0:00:29]} 38. Ne8+ {[%clk 0:00:02]}  Kh6 {[%clk 0:00:24]} 39. d6 {[%clk 0:00:02]}  g4+ {[%clk 0:00:23]} 40. Kg2 {[%clk 0:00:02]}  Rd4 {[%clk 0:00:23]} 41. Nf6 {[%clk 0:00:01]}  Rd2+ {[%clk 0:00:19]} 42. Kf1 {[%clk 0:00:02]}  Rxd6 {[%clk 0:00:18]} 43. Nxg4+ {[%clk 0:00:01]}  Kg7 {[%clk 0:00:18]} 44. Ra8 {[%clk 0:00:01]}  b4 {[%clk 0:00:17]} 0-1


[Site "https://www.chess.com"]

[Event "Titled Tuesday Blitz April 11 Late 2023"]
[White "Kramnik, Vladimir"]
[Black "Pulpan, Jakub"]
[WhiteFideId "4101588"]
[BlackFideId "302759"]
[WhiteElo "2712"]
[BlackElo "2484"]
[Result "1-0"]
[Round "05"]
[TimeControl "180+2"]
[Date "2023.04.11"]
[WhiteClock "0:00:34"]
[BlackClock "0:00:01"]

1. e4 {[%clk 0:03:00]}  e5 {[%clk 0:03:00]} 2. Nf3 {[%clk 0:03:00]}  Nc6 {[%clk 0:03:00]} 3. g3 {[%clk 0:03:00]}  Nf6 {[%clk 0:02:58]} 4. d3 {[%clk 0:02:59]}  g6 {[%clk 0:02:45]} 5. Bg2 {[%clk 0:02:58]}  Bg7 {[%clk 0:02:46]} 6. Nc3 {[%clk 0:02:56]}  O-O {[%clk 0:02:36]} 7. O-O {[%clk 0:02:56]}  Re8 {[%clk 0:02:36]} 8. Re1 {[%clk 0:02:49]}  a6 {[%clk 0:02:21]} 9. h3 {[%clk 0:02:46]}  b5 {[%clk 0:02:21]} 10. a4 {[%clk 0:02:42]}  Rb8 {[%clk 0:02:21]} 11. axb5 {[%clk 0:02:40]}  axb5 {[%clk 0:02:22]} 12. Bg5 {[%clk 0:02:34]}  h6 {[%clk 0:02:20]} 13. Be3 {[%clk 0:02:33]}  d6 {[%clk 0:02:11]} 14. Qd2 {[%clk 0:02:32]}  Kh7 {[%clk 0:02:12]} 15. Nh2 {[%clk 0:02:26]}  b4 {[%clk 0:02:07]} 16. Ne2 {[%clk 0:02:00]}  d5 {[%clk 0:01:53]} 17. f3 {[%clk 0:02:00]}  Be6 {[%clk 0:01:40]} 18. b3 {[%clk 0:01:56]}  Qd7 {[%clk 0:01:38]} 19. g4 {[%clk 0:01:55]}  Red8 {[%clk 0:01:36]} 20. Ng3 {[%clk 0:01:53]}  Nd4 {[%clk 0:01:10]} 21. Bxd4 {[%clk 0:01:51]}  exd4 {[%clk 0:01:11]} 22. e5 {[%clk 0:01:50]}  Ng8 {[%clk 0:01:11]} 23. f4 {[%clk 0:01:47]}  Ne7 {[%clk 0:01:12]} 24. Ra7 {[%clk 0:01:39]}  Ra8 {[%clk 0:01:02]} 25. Rxa8 {[%clk 0:01:37]}  Rxa8 {[%clk 0:01:03]} 26. Qxb4 {[%clk 0:01:35]}  c5 {[%clk 0:00:37]} 27. Qd2 {[%clk 0:01:31]}  Ra2 {[%clk 0:00:35]} 28. Nf3 {[%clk 0:01:30]}  Nc6 {[%clk 0:00:30]} 29. Qf2 {[%clk 0:01:23]}  Nb4 {[%clk 0:00:29]} 30. Re2 {[%clk 0:01:22]}  c4 {[%clk 0:00:18]} 31. Nxd4 {[%clk 0:01:02]}  cxd3 {[%clk 0:00:18]} 32. cxd3 {[%clk 0:01:01]}  Nxd3 {[%clk 0:00:19]} 33. Qe3 {[%clk 0:00:59]}  Rxe2 {[%clk 0:00:19]} 34. Ngxe2 {[%clk 0:00:57]}  Nb4 {[%clk 0:00:15]} 35. Qc3 {[%clk 0:00:54]}  Bf8 {[%clk 0:00:12]} 36. Kh2 {[%clk 0:00:54]}  Kg8 {[%clk 0:00:07]} 37. Ng3 {[%clk 0:00:51]}  Qe8 {[%clk 0:00:04]} 38. f5 {[%clk 0:00:47]}  Bd7 {[%clk 0:00:05]} 39. Nf3 {[%clk 0:00:42]}  g5 {[%clk 0:00:03]} 40. Nh5 {[%clk 0:00:37]}  Qe7 {[%clk 0:00:01]} 41. Nf6+ {[%clk 0:00:35]}  Kh8 {[%clk 0:00:01]} 42. Nxd7 {[%clk 0:00:34]}  Qd6 {[%clk 0:00:01]} 1-0


[Site "https://www.chess.com"]

[Event "Titled Tuesday Blitz April 11 Late 2023"]
[White "Martinez Alcantara, Jose Eduardo"]
[Black "Weetik, Vjacheslav"]
[WhiteFideId "3805662"]
[BlackFideId "4153472"]
[WhiteElo "2711"]
[BlackElo "2469"]
[Result "1-0"]
[Round "05"]
[TimeControl "180+2"]
[Date "2023.04.11"]
[WhiteClock "0:00:50"]
[BlackClock "0:00:01"]

1. e4 {[%clk 0:03:00]}  c5 {[%clk 0:02:53]} 2. Nf3 {[%clk 0:03:00]}  Nc6 {[%clk 0:02:53]} 3. Bb5 {[%clk 0:02:59]}  g6 {[%clk 0:02:51]} 4. O-O {[%clk 0:02:59]}  Bg7 {[%clk 0:02:49]} 5. c3 {[%clk 0:02:59]}  Nf6 {[%clk 0:02:49]} 6. Re1 {[%clk 0:02:59]}  O-O {[%clk 0:02:49]} 7. h3 {[%clk 0:02:59]}  e5 {[%clk 0:02:47]} 8. d3 {[%clk 0:02:59]}  d6 {[%clk 0:02:35]} 9. Bg5 {[%clk 0:02:58]}  h6 {[%clk 0:02:33]} 10. Bxf6 {[%clk 0:02:58]}  Bxf6 {[%clk 0:02:34]} 11. Nbd2 {[%clk 0:02:59]}  Bg7 {[%clk 0:02:28]} 12. a3 {[%clk 0:02:57]}  Ne7 {[%clk 0:02:16]} 13. b4 {[%clk 0:02:56]}  g5 {[%clk 0:02:13]} 14. Nf1 {[%clk 0:02:49]}  a6 {[%clk 0:01:51]} 15. Bc4 {[%clk 0:02:47]}  cxb4 {[%clk 0:01:42]} 16. axb4 {[%clk 0:02:46]}  Kh8 {[%clk 0:01:34]} 17. Ne3 {[%clk 0:02:34]}  Be6 {[%clk 0:01:26]} 18. Bxe6 {[%clk 0:02:32]}  fxe6 {[%clk 0:01:26]} 19. g3 {[%clk 0:02:27]}  Rc8 {[%clk 0:01:22]} 20. Rc1 {[%clk 0:02:25]}  Ng6 {[%clk 0:01:18]} 21. Kg2 {[%clk 0:02:22]}  Rc7 {[%clk 0:01:12]} 22. Nh2 {[%clk 0:02:11]}  d5 {[%clk 0:01:08]} 23. Qe2 {[%clk 0:01:58]}  d4 {[%clk 0:00:52]} 24. cxd4 {[%clk 0:01:53]}  exd4 {[%clk 0:00:50]} 25. Nc4 {[%clk 0:01:44]}  Rcf7 {[%clk 0:00:45]} 26. Rf1 {[%clk 0:01:44]}  Qe7 {[%clk 0:00:39]} 27. Rb1 {[%clk 0:01:41]}  b5 {[%clk 0:00:36]} 28. Nd2 {[%clk 0:01:40]}  Ne5 {[%clk 0:00:35]} 29. Ng4 {[%clk 0:01:38]}  Rc8 {[%clk 0:00:22]} 30. Nxe5 {[%clk 0:01:33]}  Bxe5 {[%clk 0:00:22]} 31. Nf3 {[%clk 0:01:32]}  Bg7 {[%clk 0:00:22]} 32. Nh2 {[%clk 0:01:23]}  Rc3 {[%clk 0:00:21]} 33. Rb2 {[%clk 0:01:20]}  Rf8 {[%clk 0:00:18]} 34. Rd1 {[%clk 0:01:19]}  Rfc8 {[%clk 0:00:17]} 35. Rdd2 {[%clk 0:01:18]}  Qf7 {[%clk 0:00:18]} 36. Ra2 {[%clk 0:01:14]}  R8c6 {[%clk 0:00:17]} 37. Ra1 {[%clk 0:01:13]}  Kh7 {[%clk 0:00:15]} 38. Rda2 {[%clk 0:01:12]}  Qb7 {[%clk 0:00:11]} 39. Nf3 {[%clk 0:01:12]}  Rb3 {[%clk 0:00:06]} 40. h4 {[%clk 0:01:09]}  Rcc3 {[%clk 0:00:05]} 41. Rd1 {[%clk 0:00:59]}  g4 {[%clk 0:00:05]} 42. Nd2 {[%clk 0:00:59]}  Rxb4 {[%clk 0:00:05]} 43. Qxg4 {[%clk 0:00:54]}  Rxd3 {[%clk 0:00:05]} 44. Qxe6 {[%clk 0:00:54]}  Qc7 {[%clk 0:00:02]} 45. Rxa6 {[%clk 0:00:51]}  Rb2 {[%clk 0:00:01]} 46. Qf5+ {[%clk 0:00:50]}  Kg8 {[%clk 0:00:01]} 47. Ra8+ {[%clk 0:00:50]} 1-0


[Site "https://www.chess.com"]

[Event "Titled Tuesday Blitz April 11 Late 2023"]
[White "Koziorowicz, Michal"]
[Black "Steinberg, Nitzan"]
[WhiteFideId "21809194"]
[BlackFideId "2801795"]
[WhiteElo "2255"]
[BlackElo "2486"]
[Result "0-1"]
[Round "05"]
[TimeControl "180+2"]
[Date "2023.04.11"]
[WhiteClock "0:01:25"]
[BlackClock "0:01:51"]

1. e4 {[%clk 0:02:57]}  g6 {[%clk 0:03:00]} 2. d4 {[%clk 0:02:57]}  Bg7 {[%clk 0:03:01]} 3. Nc3 {[%clk 0:02:58]}  d6 {[%clk 0:03:01]} 4. Be3 {[%clk 0:02:58]}  a6 {[%clk 0:03:02]} 5. h4 {[%clk 0:02:59]}  h5 {[%clk 0:03:02]} 6. Nf3 {[%clk 0:02:58]}  Bg4 {[%clk 0:03:01]} 7. Be2 {[%clk 0:02:58]}  b5 {[%clk 0:03:01]} 8. Ng5 {[%clk 0:02:59]}  Bxe2 {[%clk 0:03:00]} 9. Qxe2 {[%clk 0:02:59]}  Nd7 {[%clk 0:03:00]} 10. Qf3 {[%clk 0:03:00]}  Ngf6 {[%clk 0:02:58]} 11. Ne2 {[%clk 0:02:52]}  O-O {[%clk 0:02:55]} 12. Nf4 {[%clk 0:02:50]}  e5 {[%clk 0:02:54]} 13. Ne2 {[%clk 0:02:45]}  exd4 {[%clk 0:02:51]} 14. Nxd4 {[%clk 0:02:46]}  Ne5 {[%clk 0:02:51]} 15. Qg3 {[%clk 0:02:46]}  c5 {[%clk 0:02:51]} 16. Ne2 {[%clk 0:02:45]}  Nc4 {[%clk 0:02:47]} 17. O-O-O {[%clk 0:02:44]}  Qa5 {[%clk 0:02:42]} 18. Kb1 {[%clk 0:02:20]}  Nxb2 {[%clk 0:02:36]} 19. Bd2 {[%clk 0:02:16]}  b4 {[%clk 0:02:34]} 20. Nc1 {[%clk 0:02:11]}  Nxd1 {[%clk 0:02:32]} 21. Rxd1 {[%clk 0:02:10]}  Qa3 {[%clk 0:02:23]} 22. Nb3 {[%clk 0:02:10]}  Nxe4 {[%clk 0:02:22]} 23. Bc1 {[%clk 0:02:08]}  Nxg3 {[%clk 0:02:05]} 24. Bxa3 {[%clk 0:02:08]}  Ne2 {[%clk 0:02:06]} 25. Bb2 {[%clk 0:02:06]}  c4 {[%clk 0:02:04]} 26. Na5 {[%clk 0:02:00]}  Nc3+ {[%clk 0:02:01]} 27. Bxc3 {[%clk 0:02:00]}  bxc3 {[%clk 0:02:02]} 28. Nxc4 {[%clk 0:01:57]}  Rab8+ {[%clk 0:02:02]} 29. Kc1 {[%clk 0:01:57]}  Rb4 {[%clk 0:02:01]} 30. Na3 {[%clk 0:01:39]}  Rfb8 {[%clk 0:01:58]} 31. Rd3 {[%clk 0:01:28]}  Rxh4 {[%clk 0:01:51]} 32. Kd1 {[%clk 0:01:25]}  Ra4 {[%clk 0:01:51]} 0-1


[Site "https://www.chess.com"]

[Event "Titled Tuesday Blitz April 11 Late 2023"]
[White "Terry, Renato"]
[Black "Pakleza, Zbigniew"]
[WhiteFideId "3803457"]
[BlackFideId "1119290"]
[WhiteElo "2575"]
[BlackElo "2410"]
[Result "1-0"]
[Round "05"]
[TimeControl "180+2"]
[Date "2023.04.11"]
[WhiteClock "0:00:22"]
[BlackClock "0:00:05"]

1. Nf3 {[%clk 0:03:00]}  d5 {[%clk 0:03:00]} 2. e3 {[%clk 0:02:59]}  Nf6 {[%clk 0:03:00]} 3. b3 {[%clk 0:02:58]}  Bf5 {[%clk 0:02:59]} 4. Bb2 {[%clk 0:02:58]}  e6 {[%clk 0:03:00]} 5. Be2 {[%clk 0:02:58]}  h6 {[%clk 0:03:00]} 6. O-O {[%clk 0:02:57]}  Be7 {[%clk 0:03:01]} 7. d3 {[%clk 0:02:56]}  O-O {[%clk 0:03:01]} 8. Nbd2 {[%clk 0:02:56]}  c5 {[%clk 0:02:57]} 9. Ne5 {[%clk 0:02:53]}  Nbd7 {[%clk 0:02:55]} 10. f4 {[%clk 0:02:53]}  Bh7 {[%clk 0:02:53]} 11. Ndf3 {[%clk 0:02:50]}  Rc8 {[%clk 0:02:52]} 12. c4 {[%clk 0:02:49]}  Nxe5 {[%clk 0:02:48]} 13. Nxe5 {[%clk 0:02:44]}  Qa5 {[%clk 0:02:33]} 14. g4 {[%clk 0:02:33]}  Qc7 {[%clk 0:02:14]} 15. g5 {[%clk 0:02:30]}  hxg5 {[%clk 0:02:11]} 16. fxg5 {[%clk 0:02:31]}  Nd7 {[%clk 0:02:11]} 17. g6 {[%clk 0:02:18]}  Nxe5 {[%clk 0:02:02]} 18. gxh7+ {[%clk 0:02:18]}  Kxh7 {[%clk 0:02:03]} 19. d4 {[%clk 0:02:10]}  Ng6 {[%clk 0:01:57]} 20. cxd5 {[%clk 0:02:06]}  exd5 {[%clk 0:01:55]} 21. Bd3 {[%clk 0:02:04]}  Kg8 {[%clk 0:01:31]} 22. Qh5 {[%clk 0:02:03]}  c4 {[%clk 0:01:22]} 23. Rac1 {[%clk 0:01:26]}  Qb6 {[%clk 0:01:14]} 24. Bf5 {[%clk 0:01:21]}  Rc6 {[%clk 0:00:58]} 25. Rf3 {[%clk 0:01:15]}  Rd8 {[%clk 0:00:47]} 26. Rh3 {[%clk 0:01:14]}  Bf6 {[%clk 0:00:34]} 27. Ba3 {[%clk 0:01:11]}  Rcd6 {[%clk 0:00:26]} 28. bxc4 {[%clk 0:01:04]}  dxc4 {[%clk 0:00:27]} 29. Bxd6 {[%clk 0:00:59]}  Rxd6 {[%clk 0:00:25]} 30. Rxc4 {[%clk 0:00:59]}  Rc6 {[%clk 0:00:16]} 31. Bd3 {[%clk 0:00:47]}  Rxc4 {[%clk 0:00:09]} 32. Bxc4 {[%clk 0:00:48]}  Qb1+ {[%clk 0:00:10]} 33. Kf2 {[%clk 0:00:48]}  Qc2+ {[%clk 0:00:09]} 34. Qe2 {[%clk 0:00:48]}  Qc1 {[%clk 0:00:09]} 35. Qf1 {[%clk 0:00:37]}  Qd2+ {[%clk 0:00:08]} 36. Kg1 {[%clk 0:00:37]}  Nh4 {[%clk 0:00:06]} 37. Kh1 {[%clk 0:00:25]}  b5 {[%clk 0:00:06]} 38. Bxb5 {[%clk 0:00:23]}  Bg5 {[%clk 0:00:07]} 39. Bc4 {[%clk 0:00:22]}  Bf6 {[%clk 0:00:05]} 40. Rxh4 {[%clk 0:00:22]} 1-0


[Site "https://www.chess.com"]

[Event "Titled Tuesday Blitz April 11 Late 2023"]
[White "Iliaguev, Nisim"]
[Black "Ibarra Jerez, Jose Carlos"]
[WhiteFideId "2817276"]
[BlackFideId "2226332"]
[WhiteElo "2241"]
[BlackElo "2638"]
[Result "1/2-1/2"]
[Round "05"]
[TimeControl "180+2"]
[Date "2023.04.11"]
[WhiteClock "0:00:39"]
[BlackClock "0:00:21"]

1. d4 {[%clk 0:03:00]}  Nf6 {[%clk 0:02:59]} 2. g3 {[%clk 0:02:59]}  c5 {[%clk 0:02:58]} 3. Bg2 {[%clk 0:03:00]}  cxd4 {[%clk 0:02:58]} 4. Nf3 {[%clk 0:03:00]}  e5 {[%clk 0:02:49]} 5. O-O {[%clk 0:03:01]}  Nc6 {[%clk 0:02:50]} 6. c3 {[%clk 0:03:01]}  dxc3 {[%clk 0:02:50]} 7. Nxc3 {[%clk 0:03:02]}  d6 {[%clk 0:02:51]} 8. Bg5 {[%clk 0:03:00]}  Be7 {[%clk 0:02:51]} 9. Bxf6 {[%clk 0:03:00]}  Bxf6 {[%clk 0:02:52]} 10. Nd5 {[%clk 0:03:01]}  O-O {[%clk 0:02:51]} 11. Nd2 {[%clk 0:03:02]}  Be6 {[%clk 0:02:50]} 12. Nc4 {[%clk 0:03:02]}  Kh8 {[%clk 0:02:41]} 13. Rc1 {[%clk 0:02:58]}  Rc8 {[%clk 0:02:36]} 14. e3 {[%clk 0:02:47]}  Bg5 {[%clk 0:02:28]} 15. h4 {[%clk 0:02:45]}  Bh6 {[%clk 0:02:26]} 16. Qe2 {[%clk 0:02:43]}  f5 {[%clk 0:02:19]} 17. Rfd1 {[%clk 0:02:43]}  e4 {[%clk 0:02:18]} 18. Nf4 {[%clk 0:02:34]}  Bxc4 {[%clk 0:02:17]} 19. Qxc4 {[%clk 0:02:28]}  Bxf4 {[%clk 0:02:06]} 20. exf4 {[%clk 0:02:29]}  Qf6 {[%clk 0:02:06]} 21. b3 {[%clk 0:02:25]}  h6 {[%clk 0:02:00]} 22. Qd5 {[%clk 0:02:07]}  Nb4 {[%clk 0:01:47]} 23. Qxb7 {[%clk 0:02:03]}  Rxc1 {[%clk 0:01:44]} 24. Rxc1 {[%clk 0:02:04]}  Nd3 {[%clk 0:01:33]} 25. Rc7 {[%clk 0:01:54]}  Qa1+ {[%clk 0:01:25]} 26. Bf1 {[%clk 0:01:44]}  Qxa2 {[%clk 0:00:42]} 27. Qxa7 {[%clk 0:01:42]}  Qxa7 {[%clk 0:00:35]} 28. Rxa7 {[%clk 0:01:43]}  Rb8 {[%clk 0:00:35]} 29. Rd7 {[%clk 0:01:41]}  Rxb3 {[%clk 0:00:32]} 30. Rxd6 {[%clk 0:01:41]}  Kg8 {[%clk 0:00:21]} 31. Rd5 {[%clk 0:01:28]}  g6 {[%clk 0:00:20]} 32. h5 {[%clk 0:01:28]}  Kf7 {[%clk 0:00:21]} 33. hxg6+ {[%clk 0:01:28]}  Kxg6 {[%clk 0:00:21]} 34. Rd6+ {[%clk 0:01:25]}  Kf7 {[%clk 0:00:21]} 35. Rxh6 {[%clk 0:01:20]}  Ke7 {[%clk 0:00:21]} 36. Rh7+ {[%clk 0:01:14]}  Ke6 {[%clk 0:00:19]} 37. Ra7 {[%clk 0:01:08]}  Rb1 {[%clk 0:00:16]} 38. Ra6+ {[%clk 0:01:08]}  Kd5 {[%clk 0:00:15]} 39. Kg2 {[%clk 0:01:06]}  Ne1+ {[%clk 0:00:15]} 40. Kh3 {[%clk 0:01:04]}  Nf3 {[%clk 0:00:16]} 41. Ra5+ {[%clk 0:01:00]}  Kd4 {[%clk 0:00:15]} 42. Bg2 {[%clk 0:00:58]}  Rb2 {[%clk 0:00:12]} 43. Rxf5 {[%clk 0:00:51]}  Rxf2 {[%clk 0:00:13]} 44. Bxf3 {[%clk 0:00:47]}  exf3 {[%clk 0:00:09]} 45. Re5 {[%clk 0:00:47]}  Rf1 {[%clk 0:00:10]} 46. Kg4 {[%clk 0:00:28]}  f2 {[%clk 0:00:10]} 47. Kf3 {[%clk 0:00:28]}  Re1 {[%clk 0:00:10]} 48. Kxf2 {[%clk 0:00:23]}  Rxe5 {[%clk 0:00:11]} 49. fxe5 {[%clk 0:00:24]}  Kxe5 {[%clk 0:00:11]} 50. Ke3 {[%clk 0:00:24]}  Kf5 {[%clk 0:00:11]} 51. Kf3 {[%clk 0:00:24]}  Kg5 {[%clk 0:00:12]} 52. g4 {[%clk 0:00:25]}  Kg6 {[%clk 0:00:12]} 53. Kg3 {[%clk 0:00:25]}  Kg5 {[%clk 0:00:12]} 54. Kf3 {[%clk 0:00:25]}  Kg6 {[%clk 0:00:13]} 55. Kf4 {[%clk 0:00:26]}  Kf6 {[%clk 0:00:14]} 56. g5+ {[%clk 0:00:27]}  Kg6 {[%clk 0:00:14]} 57. Kg4 {[%clk 0:00:28]}  Kg7 {[%clk 0:00:15]} 58. Kf5 {[%clk 0:00:29]}  Kf7 {[%clk 0:00:15]} 59. Ke5 {[%clk 0:00:30]}  Kg6 {[%clk 0:00:16]} 60. Kf4 {[%clk 0:00:31]}  Kg7 {[%clk 0:00:16]} 61. Kf5 {[%clk 0:00:32]}  Kf7 {[%clk 0:00:17]} 62. g6+ {[%clk 0:00:32]}  Kg7 {[%clk 0:00:17]} 63. Kg5 {[%clk 0:00:33]}  Kg8 {[%clk 0:00:18]} 64. Kh6 {[%clk 0:00:34]}  Kh8 {[%clk 0:00:18]} 65. Kg5 {[%clk 0:00:35]}  Kg7 {[%clk 0:00:19]} 66. Kf5 {[%clk 0:00:36]}  Kg8 {[%clk 0:00:19]} 67. Kf6 {[%clk 0:00:37]}  Kf8 {[%clk 0:00:20]} 68. Ke6 {[%clk 0:00:35]}  Kg7 {[%clk 0:00:20]} 69. Kf5 {[%clk 0:00:36]}  Kg8 {[%clk 0:00:20]} 70. Kg5 {[%clk 0:00:37]}  Kg7 {[%clk 0:00:21]} 71. Kh5 {[%clk 0:00:36]}  Kg8 {[%clk 0:00:21]} 72. Kh6 {[%clk 0:00:37]}  Kh8 {[%clk 0:00:21]} 73. g7+ {[%clk 0:00:38]}  Kg8 {[%clk 0:00:21]} 74. Kg6 {[%clk 0:00:39]} 1/2-1/2


[Site "https://www.chess.com"]